Cogmind - Beta 16 @@@ ROGUE MODE // 2026.01.23 @ 23:03:00 Player: Roland Result: Destroyed by S-10 Pest with Light Assault Rifle Performance ------------- Evolutions (1) 500 Regions Visited (2) 400 Robots Destroyed (5) 25 Value Destroyed (137) 137 Prototype IDs (0) 0 Alien Tech Used (0) 0 Bonus (0) 0 TOTAL SCORE: 1062 Bonus ------- None Cogmind --------- Core Integrity 0/400 Matter 201/300 Energy 100/100 System Corruption 0% Temperature Cool (0) Movement Core (100) Ox1 Location -9/Materials Parts ------- > --- POWER (2) -------- (None) > --- PROPULSION (3) --- (None) > --- UTILITY (2) ------ Small Storage Unit > --- WEAPON (2) ------- (None) > --- INVENTORY (8) ---- Ion Engine Improved Ion Engine Peak State ------------ > --- POWER ------------ Ion Engine Improved Ion Engine > --- PROPULSION ------- Aluminum Leg > --- UTILITY ---------- Small Storage Unit > --- WEAPON ----------- Medium Laser Assault Rifle > --- INVENTORY -------- Small Laser [Rating: 7] Favorites ----------- Power Light Ion Engine Engine Light Ion Engine Propulsion Aluminum Leg Leg Aluminum Leg Utility Small Storage Unit Storage Small Storage Unit Weapon Medium Laser Energy Gun Medium Laser Ballistic Gun Assault Rifle Build | -11 -10 -9 ------- Run | Yrd Mat Mat Slots Evolved 2 | . . 2 Power 1 | . . 1 Propulsion 1 | . . 1 Utility . | . . . Weapon . | . . . Parts Attached 8 | 6 . 2 Power 3 | 1 . 2 Engine 3 | 1 . 2 Core . | . . . Reactor . | . . . Propulsion 2 | 2 . . Treads . | . . . Leg 2 | 2 . . Wheel . | . . . Hover . | . . . Flight . | . . . Utility 1 | 1 . . Device . | . . . Storage 1 | 1 . . Processor . | . . . Hackware . | . . . Protection . | . . . Artifact . | . . . Weapon 2 | 2 . . Energy Gun 1 | 1 . . Energy Cannon . | . . . Ballistic Gun 1 | 1 . . Ballistic Cannon . | . . . Launcher . | . . . Special Weapon . | . . . Impact Weapon . | . . . Slashing Weapon . | . . . Piercing Weapon . | . . . Special Melee Weapon . | . . . Unidentified Prototypes . | . . . Parts Lost 5 | . 1 4 Power 1 | . 1 . Propulsion 2 | . . 2 Utility . | . . . Weapon 2 | . . 2 Highest Loss Streak 4 | . 1 4 To Critical Strikes . | . . . Average Backups 1 | 1 2 2 Power 1 | . 1 1 Propulsion . | . . . Utility . | . . . Weapon . | . 1 . Tool/Special . | . . . Unused Backups 1 | . . 1 Power . | . . . Propulsion . | . . . Utility . | . . . Weapon 1 | . . 1 Tool/Special . | . . . Average Slot Usage (%) 57 | . 85 43 Engine 5 | . 14 . Leg 20 | . 28 16 Storage 12 | . 14 11 Energy Gun 10 | . 14 7 Ballistic Gun 10 | . 14 7 Peak Build Rating 7 | 6 6 7 Average Rating 4 | 5 5 3 On Entrance 3 | . 6 5 Avg Prop Armor Cover (%) 29 | 29 . . Naked Turns . | . . . Heaviest Build 12 | 12 12 9 Greatest Support 20 | 20 20 20 Greatest Overweight (x) 1 | . . 1 Average Overweight (x) . | . . . Largest Inventory Capacity 8 | 8 8 8 Average Capacity 7 | 7 8 8 Most Carried 3 | 3 2 3 Average Carried 1 | 1 2 2 Final Capacity 8 | 8 8 8 Final Carried 2 | 2 2 2 Class Distribution -------------------- 100% | Mutant Dominant Class ---------------- Mutant | -10/Materials Mutant | -9/Materials Resources | -11 -10 -9 ----------- Run | Yrd Mat Mat Matter Collected 256 | 150 49 57 Remotely . | . . . Salvage Created 231 | 73 49 109 Parts 12 | 6 1 5 Haulers Intercepted . | . . . Recyclers Shooed 1 | 1 . . Parts Field Recycled . | . . . Retrieved Matter . | . . . Parts Self-Destructed . | . . . Prevented . | . . . Parts Restored . | . . . Kills | -11 -10 -9 ------- Run | Yrd Mat Mat Combat Hostiles Destroyed 3 | . 1 2 Guns 3 | . 1 2 Classes Destroyed 4 | 2 1 1 Tunneler 1 | 1 . . Recycler 1 | 1 . . Grunt 1 | . 1 . Sentry 2 | . . 2 Best Kill Streak 1 | 1 1 1 Combat Bots Only 1 | . 1 1 Max Kills in Single Turn 1 | 1 1 1 Gunslinging . | . . . Exploded . | . . . Melee . | . . . Uniques/NPCs Destroyed . | . . . Combat | -11 -10 -9 -------- Run | Yrd Mat Mat Hostile Shots Fired 136 | . 35 101 Missed 43 | . 13 30 Hits 93 | . 22 71 Projectile 93 | . 22 71 Critical Strikes 3 | . . 3 Damage Taken 906 | . 211 695 Core 401 | . . 401 Absorbed by Shields . | . . . Core Remaining (%) 100 | 100 100 . Volleys Fired 32 | 5 8 19 Largest 2 | 2 2 2 Hottest 70 | 70 70 70 Shots Fired 64 | 10 16 38 Gun 64 | 10 16 38 Cannon . | . . . Launcher . | . . . Special . | . . . Kinetic 32 | 5 8 19 Thermal 32 | 5 8 19 Explosive . | . . . Electromagnetic . | . . . Robot Hit Streak 10 | 5 4 10 Robot Miss Streak 5 | 1 5 2 Penetration Max . | . . . Secondary Targets . | . . . Shots Hit Robots 32 | 9 8 15 Core Hits 9 | 3 2 4 Critical Kills 1 | . . 1 Critical Parts Destroyed 1 | . . 1 Critical Strikes 4 | 1 . 3 Burn 2 | 1 . 1 Destroy 2 | . . 2 Melee Attacks . | . . . Impact . | . . . Slashing . | . . . Piercing . | . . . Sneak Attacks . | . . . Combat Hostiles . | . . . Follow-up Attacks . | . . . Damage Inflicted 414 | 115 99 200 Guns 412 | 115 99 198 Cannons . | . . . Explosions . | . . . Melee . | . . . Ramming 2 | . . 2 Kinetic 238 | 66 62 110 Thermal 174 | 49 37 88 Explosive . | . . . Electromagnetic . | . . . Impact . | . . . Slashing . | . . . Piercing . | . . . Highest Corruption 1 | . 1 . Average Corruption 1 | . 1 . Corruption Purged . | . . . Corruption Blocked . | . . . Effects 1 | . 1 . Matter Fused 1 | . 1 . Overload Shots . | . . . Overflow Damage . | . . . Projectiles . | . . . Explosions . | . . . Melee . | . . . Knockbacks . | . . . Impact . | . . . Kinetic . | . . . Secondary . | . . . Self-Inflicted Damage . | . . . Shots . | . . . Rammed . | . . . Targets Rammed 1 | . . 1 Kicked 1 | . . 1 Crushed . | . . . Highest Temperature 75 | 36 75 22 Average Temperature 23 | 16 30 11 Received Heat Transfer 213 | . 60 153 Siege Activations . | . . . Martial Activations . | . . . Shielding Activations . | . . . Robots Disrupted . | . . . Combat Hostiles . | . . . Robots Corrupted . | . . . Combat Hostiles . | . . . Parts Fried . | . . . Impact Corruptions . | . . . Robots Melted . | . . . Combat Hostiles . | . . . Parts Melted . | . . . Heat Transferred 666 | 222 111 333 Parts Sabotaged . | . . . Parts Stolen . | . . . Parts Stripped . | . . . Power Chain Reactions . | . . . Alert | -11 -10 -9 ------- Run | Yrd Mat Mat Maximum Alert Level . | . . . Low Security (%) 100 | 100 100 100 Level 1 . | . . . Level 2 . | . . . Level 3 . | . . . Level 4 . | . . . Level 5 . | . . . High Security . | . . . Max Security . | . . . Peak Influence 30 | 5 30 30 Initial 3 | . 3 . Average 3 | . 2 5 Influence Increases 115 | 10 30 75 Destroy 0b10 Robot/C 60 | . 20 40 Destroy 0b10 Robot/NC 10 | 10 . . Destroy Leader 30 | . 10 20 Lose Combat Pursuer 15 | . . 15 Influence Decreases 115 | 5 35 75 Entered New Map 2 | . 2 . Time Decay 53 | 5 3 45 Lost Part 30 | . . 30 Purge Threat 30 | . 30 . Squads Dispatched 2 | . 2 . Investigation 1 | . 1 . Extermination . | . . . Reinforcement 1 | . 1 . Assault . | . . . Garrison . | . . . Intercept . | . . . Searches Triggered . | . . . Construction Impeded . | . . . Haulers Reinforced . | . . . Active Scanning Responses . | . . . Cargo Convoy Interrupts . | . . . Stealth | -11 -10 -9 --------- Run | Yrd Mat Mat Distress Signals 2 | . . 2 Communications Jammed . | . . . Distress Signals . | . . . Times Spotted 20 | . 6 14 Peak Tracking Total 7 | . 4 7 Tactical Retreats 1 | . . 1 Traps | -11 -10 -9 ------- Run | Yrd Mat Mat Traps Triggered 1 | . 1 . Indirectly . | . . . Trap Hack Attempts . | . . . Triggered . | . . . Disarmed . | . . . Reprogrammed . | . . . Reused . | . . . Traps Extracted . | . . . Installed . | . . . Triggered . | . . . Machines | -11 -10 -9 ---------- Run | Yrd Mat Mat Machines Disabled . | . . . Max in Single Turn . | . . . Machines Repaired . | . . . Machines Dismantled . | . . . Machines Sabotaged . | . . . Overloaded Fab Kills . | . . . Hacking | -11 -10 -9 --------- Run | Yrd Mat Mat Machines Accessed 2 | . 2 . Terminals 2 | . 2 . Fabricators . | . . . Repair Stations . | . . . Recycling Units . | . . . Scanalyzers . | . . . Garrison Access . | . . . Total Hacks 7 | . 7 . Successful 2 | . 2 . Failed 5 | . 5 . Catastrophic . | . . . Database Lockouts . | . . . Manual . | . . . Terminals 7 | . 7 . Fabricators . | . . . Repair Stations . | . . . Recycling Units . | . . . Scanalyzers . | . . . Garrison Access . | . . . Terminal Hacks 2 | . 2 . Alert Level 1 | . 1 . Unreport Threat 1 | . 1 . Fabricator Hacks . | . . . Repair Station Hacks . | . . . Recycling Unit Hacks . | . . . Scanalyzer . | . . . Garrison Access Hacks . | . . . Unauthorized Hacks . | . . . Terminals . | . . . Fabricators . | . . . Repair Stations . | . . . Recycling Units . | . . . Scanalyzers . | . . . Garrison Access . | . . . Data Cores Recovered . | . . . Used . | . . . Hacking Detections 2 | . 2 . Full Trace Events 1 | . 1 . Feedback Events . | . . . Feedback Blocked . | . . . Robot Schematics Acquired . | . . . Robots Built . | . . . Authchips . | . . . Time . | . . . Total Robot Build Rating . | . . . Part Schematics Acquired . | . . . Parts Built . | . . . Authchips . | . . . Time . | . . . Total Part Build Rating . | . . . Part Studies Acquired . | . . . Parts Repaired . | . . . Time . | . . . Parts Recycled . | . . . Recycled Matter . | . . . Retrieved Matter . | . . . Retrieved Components . | . . . Parts Scanalyzed . | . . . Part Schematics Acquired . | . . . Parts Damaged . | . . . Bothacking | -11 -10 -9 ------------ Run | Yrd Mat Mat Used RIF Installer . | . . . Robots Hacked . | . . . Non-combat . | . . . Combat . | . . . Robot Hacks Applied . | . . . Relay Couplers Released . | . . . Fabnet Peak Effective % . | . . . Robots Rewired . | . . . Allies Hacked . | . . . Hacks Repelled . | . . . Allies | -11 -10 -9 -------- Run | Yrd Mat Mat Total Allies . | . . . Largest Group . | . . . Highest-Rated Group . | . . . Highest-Rated Ally . | . . . Total Orders . | . . . Ally Attacks . | . . . Total Damage . | . . . Kills . | . . . Allies Corrupted . | . . . Allies Melted . | . . . Intel | -11 -10 -9 ------- Run | Yrd Mat Mat Active Infowar (turns) . | . . . Robot Analysis Total . | . . . Derelict Logs Recovered . | . . . Drone Launches . | . . . Drone Recoveries . | . . . Exploration | -11 -10 -9 ------------- Run | Yrd Mat Mat Turns Passed 454 | 92 123 239 Spaces Moved 299 | 62 83 154 Core 67 | 16 . 51 Treads . | . . . Legs 232 | 46 83 103 Wheels . | . . . Hover . | . . . Flight . | . . . Fastest Speed 50 | 50 120 100 Average Speed 112 | 101 120 113 Slowest Speed 120 | 120 120 120 Overloaded Moves . | . . . Propulsion Burnouts . | . . . Robots Hopped . | . . . Potential Cave-ins . | . . . Cave-ins Triggered . | . . . Exploration Rate (%) 17 | 4 29 18 Regions Visited 2 Branch Regions . Pre-discovered Areas . | . . . Known Exits Taken . | . . . Unknown Exits Taken 2 | 1 1 . Scrap Searched . | . . . Spaces Dug . | . . . Terrain Destroyed . | . . . Melee . | . . . Projectile . | . . . AOE . | . . . Terrain Rammed . | . . . Walls Destroyed . | . . . Machines Disabled . | . . . Actions | -11 -10 -9 --------- Run | Yrd Mat Mat Total 352 | 81 90 181 Wait 2 | 1 . 1 Move 297 | 61 82 154 Hop . | . . . Pick Up 9 | 8 . 1 Fast Attach . | . . . Attach 8 | 6 . 2 Detach 2 | . . 2 Swap . | . . . Drop 1 | . . 1 Fire 32 | 5 8 19 Melee . | . . . Ram . | . . . Kick 1 | . . 1 Crush . | . . . Escape Stasis . | . . . Rewire . | . . . Trap . | . . . Miscellaneous . | . . . Route ------- -11/Scrapyard -10/Materials -9/Materials History --------- Turn | Location | Event 2 | -11/Scrapyard | Discovered new exit (range 16) 93 | -11/Scrapyard | Entered Materials 200 | -10/Materials | Discovered new exit (range 14) 216 | -10/Materials | Entered another Materials area 216 | -9/Materials | Evolved 2 slots: Power x1, Propulsion x1 303 | -9/Materials | Build established: Mutant 424 | -9/Materials | Core integrity fell below 50% 434 | -9/Materials | Lost 4 parts (2n2w) 446 | -9/Materials | Core integrity fell below 20% 455 | -9/Materials | Destroyed by S-10 Pest with Light Assault Rifle Last Messages --------------- W-16 Scout sends out distress signal. Critical hit (Burn: +37). K-01 Serf collects debris. W-16 Scout sends out distress signal. Y-45 Defender destroyed. K-01 Serf collects debris. Aluminum Leg destroyed. Critical hit (Burn: +37). Acquired Imp. Ion Engine. K-01 Serf collects debris. Assault Rifle destroyed. Med. Laser destroyed. K-01 Serf collects debris. K-01 Serf destroyed. Aluminum Leg destroyed. Dropped Sml. Laser. K-01 Serf collects debris. K-01 Serf cleans the Scanalyzer. K-01 Serf collects debris. Critical hit (Burn: +37). Map ----- +----------------------------------------------------+ | | | | | | | | | | | | | | | | | | | | | | | | | | | | | | | | | ??????????????????????????????????????????????? | | ??????????????????????????????????????????????? | | ??????????????????????????????????????????????? | | ??????????????????????????????????????????????? | | ??????????????????????????????????????????????? | | ??????????????????????????????????????????????? | | ??????????????????????????????????????????????? | | ????????????????????##???########?????????????? | | ????????????????????# ## #?????????????? | | ????????????????????# Y @ """ #?????????????? | | ????????????????????# ##s""" #?????????????? | | ????????????????????##???#s""" #?????????????? | | ##########???????????????# s #?????????????? | | # ############# #?# |#???????#?????? | | # ! + #?####+####### #?????? | | # ####### ##### #??# +?????? | | # #??####+#####????# #?????? | | + """ #?##=! # ???# #?????? | | # """"" #?# [=] """ # ???# ###+#######?????? | | # """"" #?##[= "T" # #### #???????????????? | | # """"" #??#[] # +???????????????? | | # """ #??# / #???????????????? | | ##########??# """ # #???????????????? | | ????????????# """ ###+######???????????????? | | ????????????# """ # #????????????????? | | ????????????# #""" #????????????????? | | ????????????#+########""" #????????????????? | | ????????????# #??????#""" #????????????????? | | ????????????# #??????#""" ###############??? | | ????????????# #??????#""" / ![[ #??? | | ????????????# #??????# # [[[ #??? | | ????????????# #??????# # [[[ #??? | | ????????????# #??????# "Y" + #??? | | ????????????# #??????# """ #### #??? | +----------------------------------------------------+ Best States ------------- Heat Dissipation 28 Energy Generation 10 Energy Capacity 250 Matter Stores 219 Matter Capacity 300 Sight Range 16 Terrain Scan Density 10 Evasion (%) 55 Item Schematics ----------------- None Robot Schematics ------------------ None Fabricated ------------ Nothing Repaired ---------- Nothing Studied --------- None Alien Tech Used ----------------- None Achievements -------------- None Challenges ------------ None Game ------ Seed MeleeMatterMicroactuators Manual? 0 Play Time 00:08:54 Cumulative 11.3 hours Start 2026.01.23 @ 22:56:37 End 2026.01.23 @ 23:03:00 Sessions 1 Manual Loads 0 Difficulty Rogue Special Mode None Game No. 9 Rogue 4 Adventurer 0 Explorer 5 Win Type - Total 0 Types 0/0/0/0/0/0/0/0/0/0 Lore% 21 Gallery% 15 Achievement% 15 Wizard Run 0 Options --------- Layout 1 ASCII 0 Keyboard 0 Movement Numpad Keybinds 0 Fullscreen 1 Font 48/Smallcaps Map View 50x35 Zoom Use 0% Tactical HUD 0 Map Filters NONE Filters NONE Steam 1 RUN: 580d458d-6889-49f0-b403-9116456d582f